[Event "*** Titled Tuesday 3|2 Blitz"]
[Site "Chess.com"]
[Date "2016.02.02"]
[Round "3"]
[White "ItalianMachine"]
[Black "brauliocuarta"]
[Result "1-0"]
[WhiteElo "2235"]
[BlackElo "1961"]
[TimeControl "180+2"]
[EndTime "17:31:42 PST"]
[Termination "ItalianMachine won by resignation"]

1. e4 {[%clk 0:03:01.9]} 1... c5 {[%clk 0:02:59.9]} 2. c4 {[%clk 0:02:57.7]}
2... e6 {[%clk 0:03:00.4]} 3. Nc3 {[%clk 0:02:58.4]} 3... a6 {[%clk 0:03:01.9]}
4. g3 {[%clk 0:02:59.9]} 4... b6 {[%clk 0:02:59.4]} 5. Bg2 {[%clk 0:03:01.1]}
5... Bb7 {[%clk 0:03:01]} 6. Nge2 {[%clk 0:03:01.9]} 6... Qc7 {[%clk 0:02:57.9]}
7. O-O {[%clk 0:03:02.7]} 7... d6 {[%clk 0:02:56.9]} 8. d3 {[%clk 0:03:02.6]}
8... Nf6 {[%clk 0:02:57.9]} 9. h3 {[%clk 0:03:02.2]} 9... Nbd7 {[%clk
0:02:57.3]} 10. Be3 {[%clk 0:03:03.5]} 10... Be7 {[%clk 0:02:58.6]} 11. Rc1
{[%clk 0:03:02.4]} 11... O-O {[%clk 0:02:58.4]} 12. d4 {[%clk 0:03:03.5]} 12...
cxd4 {[%clk 0:02:59.4]} 13. Nxd4 {[%clk 0:03:05.1]} 13... Rac8 {[%clk
0:02:58.5]} 14. Kh2 {[%clk 0:03:02.6]} 14... Qb8 {[%clk 0:02:46.5]} 15. b3
{[%clk 0:03:02.4]} 15... Rfe8 {[%clk 0:02:42.3]} 16. f4 {[%clk 0:03:00]} 16...
Nc5 {[%clk 0:02:29.2]} 17. Qc2 {[%clk 0:02:55.9]} 17... b5 {[%clk 0:02:06.7]}
18. b4 {[%clk 0:02:49.1]} 18... Ncd7 {[%clk 0:01:34.6]} 19. cxb5 {[%clk
0:02:48.3]} 19... axb5 {[%clk 0:01:35.7]} 20. Ndxb5 {[%clk 0:02:47.3]} 20...
Nxe4 {[%clk 0:01:30.4]} 21. Bxe4 {[%clk 0:02:46.9]} 21... d5 {[%clk 0:01:16.3]}
22. Bxh7+ {[%clk 0:02:40.6]} 22... Kh8 {[%clk 0:01:16.3]} 23. Bd3 {[%clk
0:02:41.9]} 23... Bxb4 {[%clk 0:01:16.5]} 24. Qe2 {[%clk 0:02:41.5]} 24... Ba6
{[%clk 0:01:10.5]} 25. Qh5+ {[%clk 0:02:12.9]} 25... Kg8 {[%clk 0:01:10.5]} 26.
Qh7+ {[%clk 0:02:14.2]} 26... Kf8 {[%clk 0:01:11.6]} 27. Qh8+ {[%clk 0:02:12.9]}
27... Ke7 {[%clk 0:01:12.3]} 28. Qxg7 {[%clk 0:02:14.1]} 28... Rg8 {[%clk
0:01:07.7]} 29. Qh6 {[%clk 0:02:03.3]} 29... Nf6 {[%clk 0:01:01.7]} 30. Bd4
{[%clk 0:01:59.8]} 30... Nd7 {[%clk 0:00:34.7]} 31. Nxd5+ {[%clk 0:01:59.3]}
31... exd5 {[%clk 0:00:31.1]} 32. Qxa6 {[%clk 0:01:58.9]} 32... Rxc1 {[%clk
0:00:19.3]} 33. Rxc1 {[%clk 0:01:58]} 33... Rc8 {[%clk 0:00:17]} 34. Rxc8 {[%clk
0:01:55.2]} 1-0

[Event "*** Titled Tuesday 3|2 Blitz"]
[Site "Chess.com"]
[Date "2016.02.02"]
[Round "3"]
[White "DanielNaroditsky"]
[Black "lionheart95"]
[Result "1-0"]
[WhiteElo "2552"]
[BlackElo "2280"]
[TimeControl "180+2"]
[EndTime "17:32:14 PST"]
[Termination "DanielNaroditsky won by resignation"]

1. e4 {[%clk 0:02:55.9]} 1... e6 {[%clk 0:03:00.1]} 2. d4 {[%clk 0:02:55.5]}
2... d5 {[%clk 0:03:01.1]} 3. Nd2 {[%clk 0:02:56.8]} 3... Be7 {[%clk 0:03:00.2]}
4. Ngf3 {[%clk 0:02:57.4]} 4... Nf6 {[%clk 0:02:58.2]} 5. e5 {[%clk 0:02:58.5]}
5... Nfd7 {[%clk 0:02:59.1]} 6. Bd3 {[%clk 0:03:00.4]} 6... c5 {[%clk
0:03:00.2]} 7. c3 {[%clk 0:03:01.8]} 7... Nc6 {[%clk 0:03:01.1]} 8. O-O {[%clk
0:03:03.2]} 8... a5 {[%clk 0:03:01.9]} 9. Re1 {[%clk 0:03:04]} 9... cxd4 {[%clk
0:03:02.3]} 10. cxd4 {[%clk 0:03:04.7]} 10... Qb6 {[%clk 0:03:03.2]} 11. Nb1
{[%clk 0:03:05.4]} 11... Nxd4 {[%clk 0:03:03.5]} 12. Nxd4 {[%clk 0:03:06.5]}
12... Qxd4 {[%clk 0:03:05]} 13. Nc3 {[%clk 0:03:08.1]} 13... Qh4 {[%clk
0:03:05.8]} 14. g3 {[%clk 0:03:05.6]} 14... Qh3 {[%clk 0:03:06.5]} 15. Bf1
{[%clk 0:03:06.9]} 15... Qf5 {[%clk 0:03:06.6]} 16. Bd3 {[%clk 0:03:08.4]} 16...
Qh3 {[%clk 0:03:07.3]} 17. Nb5 {[%clk 0:03:09.4]} 17... O-O {[%clk 0:03:01]} 18.
Nd4 {[%clk 0:03:00]} 18... g5 {[%clk 0:02:39.5]} 19. Bf1 {[%clk 0:02:56.8]}
19... Qh6 {[%clk 0:02:39]} 20. h4 {[%clk 0:02:56.6]} 20... Qg7 {[%clk 0:02:38]}
21. hxg5 {[%clk 0:02:50.8]} 21... Bxg5 {[%clk 0:02:38.2]} 22. Bxg5 {[%clk
0:02:45.5]} 22... Qxg5 {[%clk 0:02:40.1]} 23. Bg2 {[%clk 0:02:36.4]} 23... b6
{[%clk 0:02:36.4]} 24. Re3 {[%clk 0:02:19.4]} 24... Nc5 {[%clk 0:02:32.1]} 25.
f4 {[%clk 0:02:15.3]} 25... Qg7 {[%clk 0:02:31.3]} 26. Qh5 {[%clk 0:02:06.3]}
26... Ba6 {[%clk 0:02:28.8]} 27. f5 {[%clk 0:02:02.4]} 27... Rfe8 {[%clk
0:02:15.8]} 28. g4 {[%clk 0:01:50.3]} 28... Nd3 {[%clk 0:02:02.2]} 29. fxe6
{[%clk 0:01:40]} 29... fxe6 {[%clk 0:01:58.1]} 30. Nxe6 {[%clk 0:01:41.4]} 30...
Rxe6 {[%clk 0:01:52.8]} 31. Bxd5 {[%clk 0:01:42.1]} 31... Nf4 {[%clk 0:01:53.8]}
32. Bxe6+ {[%clk 0:01:30.5]} 32... Nxe6 {[%clk 0:01:54.7]} 33. Qf5 {[%clk
0:01:10.5]} 33... Re8 {[%clk 0:01:37.5]} 34. Rd1 {[%clk 0:01:07]} 34... Bc8
{[%clk 0:01:38.2]} 35. Rc3 {[%clk 0:00:58]} 35... Nc5 {[%clk 0:01:23.8]} 36. Qh5
{[%clk 0:00:56.1]} 36... Bxg4 {[%clk 0:01:22.3]} 37. Qxe8+ {[%clk 0:00:56.5]}
1-0

[Event "*** Titled Tuesday 3|2 Blitz"]
[Site "Chess.com"]
[Date "2016.02.02"]
[Round "3"]
[White "Silent_Terror"]
[Black "Er_is_geen_hoop_meer"]
[Result "1-0"]
[WhiteElo "2609"]
[BlackElo "2298"]
[TimeControl "180+2"]
[EndTime "17:32:26 PST"]
[Termination "Silent_Terror won by resignation"]

1. e4 {[%clk 0:03:01.9]} 1... c5 {[%clk 0:03:00.5]} 2. Be2 {[%clk 0:03:01]} 2...
Nc6 {[%clk 0:03:00.5]} 3. d3 {[%clk 0:03:01]} 3... g6 {[%clk 0:03:01.6]} 4. f4
{[%clk 0:03:02.3]} 4... Bg7 {[%clk 0:03:02.6]} 5. Nf3 {[%clk 0:03:04.2]} 5...
Nf6 {[%clk 0:03:03.8]} 6. O-O {[%clk 0:03:04.7]} 6... O-O {[%clk 0:03:05]} 7. c3
{[%clk 0:03:05.6]} 7... d5 {[%clk 0:03:06.1]} 8. e5 {[%clk 0:03:06.4]} 8... Ne8
{[%clk 0:03:06.4]} 9. Be3 {[%clk 0:03:05.5]} 9... d4 {[%clk 0:03:05.8]} 10. cxd4
{[%clk 0:03:04.8]} 10... cxd4 {[%clk 0:03:07.7]} 11. Bf2 {[%clk 0:03:03.1]}
11... Nc7 {[%clk 0:03:08.2]} 12. Qd2 {[%clk 0:03:02]} 12... f6 {[%clk
0:03:07.1]} 13. exf6 {[%clk 0:02:53.4]} 13... Bxf6 {[%clk 0:03:09]} 14. Bd1
{[%clk 0:02:54.4]} 14... Be6 {[%clk 0:03:09.1]} 15. Na3 {[%clk 0:02:54.5]} 15...
Nd5 {[%clk 0:03:08.6]} 16. Bb3 {[%clk 0:02:53.9]} 16... Bf7 {[%clk 0:03:04.4]}
17. Rfe1 {[%clk 0:02:51.1]} 17... a6 {[%clk 0:02:57.2]} 18. Nc4 {[%clk
0:02:49.9]} 18... b5 {[%clk 0:02:55.1]} 19. Nce5 {[%clk 0:02:51.1]} 19... Qd6
{[%clk 0:02:34]} 20. Rac1 {[%clk 0:02:37.3]} 20... Rac8 {[%clk 0:02:30.1]} 21.
Bg3 {[%clk 0:02:32.3]} 21... Ne3 {[%clk 0:02:28.2]} 22. Nxf7 {[%clk 0:02:25.5]}
22... Rxf7 {[%clk 0:02:30.1]} 23. f5 {[%clk 0:02:23.7]} 23... Qd8 {[%clk
0:02:21]} 24. fxg6 {[%clk 0:02:24.1]} 24... hxg6 {[%clk 0:02:22.9]} 25. Nh4
{[%clk 0:02:05.5]} 25... Bg5 {[%clk 0:02:16]} 26. Bxf7+ {[%clk 0:01:52.1]} 26...
Kxf7 {[%clk 0:02:16.8]} 27. Qf2+ {[%clk 0:01:53.7]} 27... Kg7 {[%clk 0:02:15.1]}
28. Qf3 {[%clk 0:01:45.3]} 28... e6 {[%clk 0:02:10.3]} 29. Nxg6 {[%clk
0:01:34.9]} 29... Kxg6 {[%clk 0:01:49.7]} 30. Rxc6 {[%clk 0:01:34.9]} 30... Rxc6
{[%clk 0:01:51.1]} 31. Qxc6 {[%clk 0:01:36.3]} 31... Kf7 {[%clk 0:01:52.4]} 32.
Qc7+ {[%clk 0:01:32.1]} 32... Qxc7 {[%clk 0:01:53.1]} 33. Bxc7 {[%clk 0:01:34]}
33... Nd5 {[%clk 0:01:51.4]} 34. Bg3 {[%clk 0:01:31.4]} 34... Nb4 {[%clk
0:01:52.2]} 35. Rd1 {[%clk 0:01:23.6]} 35... Nxa2 {[%clk 0:01:52.5]} 36. Be1
{[%clk 0:01:24.2]} 36... Nc1 {[%clk 0:01:52.1]} 37. Bd2 {[%clk 0:01:20.7]} 37...
Bxd2 {[%clk 0:01:48.5]} 38. Rxd2 {[%clk 0:01:22.6]} 38... a5 {[%clk 0:01:47.6]}
39. Kf2 {[%clk 0:01:17.6]} 39... a4 {[%clk 0:01:47.8]} 40. Kf3 {[%clk
0:01:14.9]} 40... e5 {[%clk 0:01:46]} 41. Ke4 {[%clk 0:01:14.9]} 41... Ke6
{[%clk 0:01:47.5]} 42. Rc2 {[%clk 0:01:11.3]} 42... Nb3 {[%clk 0:01:47.9]} 43.
Rc6+ {[%clk 0:01:11.6]} 43... Kd7 {[%clk 0:01:48.8]} 44. Rb6 {[%clk 0:01:10.2]}
44... Nc5+ {[%clk 0:01:49.3]} 45. Kxe5 {[%clk 0:01:03.1]} 45... b4 {[%clk
0:01:50.7]} 46. Kxd4 {[%clk 0:00:59.2]} 46... a3 {[%clk 0:01:42.1]} 47. Kxc5
{[%clk 0:00:53.2]} 47... a2 {[%clk 0:01:42.8]} 48. Ra6 {[%clk 0:00:53.5]} 48...
b3 {[%clk 0:01:44.7]} 49. h4 {[%clk 0:00:51.8]} 1-0

[Event "*** Titled Tuesday 3|2 Blitz"]
[Site "Chess.com"]
[Date "2016.02.02"]
[Round "3"]
[White "Gabrielian_Artur"]
[Black "chessking2151"]
[Result "1-0"]
[WhiteElo "2458"]
[BlackElo "2241"]
[TimeControl "180+2"]
[EndTime "17:32:56 PST"]
[Termination "Gabrielian_Artur won by resignation"]

1. Nf3 {[%clk 0:02:21.2]} 1... d5 {[%clk 0:02:59.2]} 2. g3 {[%clk 0:02:22.5]}
2... g6 {[%clk 0:03:00.1]} 3. Bg2 {[%clk 0:02:24]} 3... Bg7 {[%clk 0:03:01.8]}
4. O-O {[%clk 0:02:25.2]} 4... e5 {[%clk 0:03:02.4]} 5. d3 {[%clk 0:02:25.5]}
5... Ne7 {[%clk 0:03:03.5]} 6. Nbd2 {[%clk 0:02:25.2]} 6... O-O {[%clk
0:03:04.6]} 7. e4 {[%clk 0:02:26.2]} 7... h6 {[%clk 0:03:03.2]} 8. Re1 {[%clk
0:02:26.9]} 8... Nbc6 {[%clk 0:03:03.9]} 9. c3 {[%clk 0:02:27.7]} 9... Bg4
{[%clk 0:03:01.8]} 10. h3 {[%clk 0:02:28.6]} 10... Be6 {[%clk 0:03:00.4]} 11.
exd5 {[%clk 0:02:29.2]} 11... Nxd5 {[%clk 0:02:51.7]} 12. Nc4 {[%clk 0:02:29.9]}
12... f6 {[%clk 0:02:38.9]} 13. d4 {[%clk 0:02:29.6]} 13... Nxc3 {[%clk
0:02:34.9]} 14. bxc3 {[%clk 0:02:29.7]} 14... Bxc4 {[%clk 0:02:35.7]} 15. Rb1
{[%clk 0:02:29.2]} 15... b5 {[%clk 0:02:34.9]} 16. a4 {[%clk 0:02:28.5]} 16...
a6 {[%clk 0:02:35.6]} 17. Nd2 {[%clk 0:02:29]} 17... Bd5 {[%clk 0:02:33.1]} 18.
axb5 {[%clk 0:02:23.2]} 18... Bxg2 {[%clk 0:02:27.6]} 19. Kxg2 {[%clk
0:02:23.3]} 19... axb5 {[%clk 0:02:29.2]} 20. Rxb5 {[%clk 0:02:21.9]} 20... exd4
{[%clk 0:02:27.5]} 21. Qb3+ {[%clk 0:02:22.8]} 21... Kh8 {[%clk 0:02:26]} 22.
Nf3 {[%clk 0:02:23.9]} 22... d3 {[%clk 0:01:47.2]} 23. Rd1 {[%clk 0:02:21.7]}
23... Ne5 {[%clk 0:01:41.6]} 24. Rd5 {[%clk 0:02:19.9]} 24... Qe8 {[%clk
0:01:21.9]} 25. Nxe5 {[%clk 0:02:19.2]} 25... fxe5 {[%clk 0:01:22.5]} 26. R5xd3
{[%clk 0:02:20.3]} 26... Qc6+ {[%clk 0:01:24.2]} 27. Qd5 {[%clk 0:02:18.7]}
27... Qf6 {[%clk 0:01:20.3]} 28. Be3 {[%clk 0:02:17.8]} 28... Rae8 {[%clk
0:01:11.8]} 29. Qe4 {[%clk 0:02:05.5]} 29... Rf7 {[%clk 0:01:02]} 30. Rd7 {[%clk
0:02:02.9]} 30... Ref8 {[%clk 0:00:44]} 31. Rxf7 {[%clk 0:01:56.8]} 31... Qxf7
{[%clk 0:00:43.6]} 32. c4 {[%clk 0:01:53.6]} 32... Qe6 {[%clk 0:00:38.9]} 33. g4
{[%clk 0:01:52.3]} 33... Kh7 {[%clk 0:00:34]} 34. Rd5 {[%clk 0:01:50.3]} 34...
Qf7 {[%clk 0:00:27.1]} 35. c5 {[%clk 0:01:45.7]} 35... Qe6 {[%clk 0:00:22.5]}
36. Rd2 {[%clk 0:01:44.3]} 36... Qf7 {[%clk 0:00:21.1]} 37. h4 {[%clk
0:01:45.3]} 37... Qe6 {[%clk 0:00:22]} 38. h5 {[%clk 0:01:46.2]} 38... Rb8
{[%clk 0:00:13.7]} 39. c6 {[%clk 0:01:46.8]} 39... Re8 {[%clk 0:00:11.7]} 40.
Rd7 {[%clk 0:01:47]} 40... Re7 {[%clk 0:00:11.2]} 41. Qxg6+ {[%clk 0:01:47.8]}
41... Qxg6 {[%clk 0:00:12.1]} 1-0

[Event "*** Titled Tuesday 3|2 Blitz"]
[Site "Chess.com"]
[Date "2016.02.02"]
[Round "3"]
[White "DeviatkinAndrey"]
[Black "Zkid"]
[Result "0-1"]
[WhiteElo "2463"]
[BlackElo "2461"]
[TimeControl "180+2"]
[EndTime "17:33:12 PST"]
[Termination "Zkid won by resignation"]

1. g3 {[%clk 0:03:01.2]} 1... g6 {[%clk 0:02:59.8]} 2. Bg2 {[%clk 0:03:02.4]}
2... Bg7 {[%clk 0:03:01]} 3. e4 {[%clk 0:03:03.3]} 3... c5 {[%clk 0:03:01.4]} 4.
Ne2 {[%clk 0:03:03.8]} 4... Nc6 {[%clk 0:03:02.5]} 5. c3 {[%clk 0:03:04.2]} 5...
e6 {[%clk 0:03:03.1]} 6. d4 {[%clk 0:03:04.8]} 6... cxd4 {[%clk 0:03:03.3]} 7.
cxd4 {[%clk 0:03:05.5]} 7... d5 {[%clk 0:03:04.4]} 8. e5 {[%clk 0:02:42]} 8...
b5 {[%clk 0:02:48.7]} 9. Nd2 {[%clk 0:02:31.5]} 9... a5 {[%clk 0:02:42.6]} 10.
Nb3 {[%clk 0:02:32.4]} 10... Qb6 {[%clk 0:02:40.9]} 11. O-O {[%clk 0:02:25.7]}
11... a4 {[%clk 0:02:41.4]} 12. Nc5 {[%clk 0:02:26.2]} 12... Nxe5 {[%clk
0:02:37.2]} 13. Nxe6 {[%clk 0:02:03]} 13... Nf3+ {[%clk 0:02:10.8]} 14. Bxf3
{[%clk 0:02:03.2]} 14... Bxe6 {[%clk 0:02:11.8]} 15. Nf4 {[%clk 0:01:55.3]}
15... Ne7 {[%clk 0:02:11.3]} 16. Be3 {[%clk 0:01:50.2]} 16... O-O {[%clk
0:02:08.9]} 17. Rc1 {[%clk 0:01:49.4]} 17... Nf5 {[%clk 0:02:06.6]} 18. Rc5
{[%clk 0:01:29.7]} 18... Rac8 {[%clk 0:01:57.2]} 19. Nxd5 {[%clk 0:01:19.7]}
19... Bxd5 {[%clk 0:01:55.3]} 20. Rxd5 {[%clk 0:01:21]} 20... Rfd8 {[%clk
0:01:51.8]} 21. Qd3 {[%clk 0:00:58.8]} 21... Bxd4 {[%clk 0:01:42.1]} 22. Bxd4
{[%clk 0:00:52.8]} 22... Nxd4 {[%clk 0:01:36.1]} 23. Re1 {[%clk 0:00:33.6]}
23... Qf6 {[%clk 0:01:26.1]} 24. Rxd8+ {[%clk 0:00:34]} 24... Rxd8 {[%clk
0:01:25.8]} 25. Bg2 {[%clk 0:00:35]} 25... h5 {[%clk 0:01:22.2]} 26. h4 {[%clk
0:00:35.5]} 26... Kg7 {[%clk 0:01:21.3]} 27. Qe4 {[%clk 0:00:36]} 27... b4
{[%clk 0:01:12.5]} 28. Qe5 {[%clk 0:00:30.7]} 28... Nc2 {[%clk 0:01:04.6]} 29.
Qxf6+ {[%clk 0:00:29.8]} 29... Kxf6 {[%clk 0:01:05.7]} 30. Re4 {[%clk
0:00:30.9]} 30... Rd1+ {[%clk 0:01:04.6]} 31. Kh2 {[%clk 0:00:31.5]} 31... Rb1
{[%clk 0:01:04.5]} 32. a3 {[%clk 0:00:32.4]} 32... Rxb2 {[%clk 0:01:04.5]} 33.
Rf4+ {[%clk 0:00:32.1]} 33... Kg7 {[%clk 0:01:03.1]} 34. axb4 {[%clk 0:00:32.9]}
34... Rxb4 {[%clk 0:01:01.8]} 35. Bd5 {[%clk 0:00:15.8]} 35... Rxf4 {[%clk
0:01:01.3]} 36. gxf4 {[%clk 0:00:17]} 36... a3 {[%clk 0:01:02.5]} 37. Kg3 {[%clk
0:00:17.2]} 37... Nb4 {[%clk 0:01:03.6]} 38. Bc4 {[%clk 0:00:18.7]} 38... a2
{[%clk 0:01:04.9]} 39. Bxa2 {[%clk 0:00:19.7]} 39... Nxa2 {[%clk 0:01:05.7]} 40.
f5 {[%clk 0:00:21.4]} 40... gxf5 {[%clk 0:01:06.5]} 41. Kf4 {[%clk 0:00:22.5]}
41... Kf6 {[%clk 0:01:07.7]} 42. f3 {[%clk 0:00:24.3]} 42... Nc3 {[%clk
0:01:08.1]} 43. Ke3 {[%clk 0:00:25.1]} 43... Ke5 {[%clk 0:01:09.3]} 0-1

[Event "*** Titled Tuesday 3|2 Blitz"]
[Site "Chess.com"]
[Date "2016.02.02"]
[Round "3"]
[White "spirals5"]
[Black "GM_Huschenbeth"]
[Result "0-1"]
[WhiteElo "2230"]
[BlackElo "2273"]
[TimeControl "180+2"]
[EndTime "17:33:26 PST"]
[Termination "GM_Huschenbeth won on time"]

1. e4 {[%clk 0:03:01.9]} 1... c5 {[%clk 0:03:00.4]} 2. Nc3 {[%clk 0:03:01.7]}
2... a6 {[%clk 0:03:01.3]} 3. g3 {[%clk 0:03:02.5]} 3... b5 {[%clk 0:03:02.6]}
4. Bg2 {[%clk 0:03:03.7]} 4... Bb7 {[%clk 0:03:04.3]} 5. d3 {[%clk 0:03:04.9]}
5... e6 {[%clk 0:03:05.9]} 6. a3 {[%clk 0:03:05.9]} 6... d5 {[%clk 0:03:03.9]}
7. f4 {[%clk 0:03:03.3]} 7... Nc6 {[%clk 0:02:51.1]} 8. exd5 {[%clk 0:03:03.5]}
8... Nd4 {[%clk 0:02:52.3]} 9. Nge2 {[%clk 0:03:01.7]} 9... Nf6 {[%clk
0:02:52.3]} 10. Nxd4 {[%clk 0:03:00.4]} 10... cxd4 {[%clk 0:02:54.2]} 11. Ne4
{[%clk 0:02:56.8]} 11... Nxd5 {[%clk 0:02:48.5]} 12. O-O {[%clk 0:02:55.3]}
12... g6 {[%clk 0:02:37.9]} 13. g4 {[%clk 0:02:28.9]} 13... Qc7 {[%clk
0:01:54.8]} 14. f5 {[%clk 0:02:10.5]} 14... gxf5 {[%clk 0:01:52.1]} 15. gxf5
{[%clk 0:02:11.2]} 15... O-O-O {[%clk 0:01:49.1]} 16. fxe6 {[%clk 0:02:08.1]}
16... fxe6 {[%clk 0:01:51]} 17. Qg4 {[%clk 0:02:02.7]} 17... Kb8 {[%clk
0:01:13.7]} 18. Qxe6 {[%clk 0:01:46.7]} 18... Bd6 {[%clk 0:01:14.3]} 19. Qh3
{[%clk 0:01:32.9]} 19... Rhg8 {[%clk 0:01:10.9]} 20. Kh1 {[%clk 0:01:33]} 20...
Bf4 {[%clk 0:01:03.5]} 21. Bxf4 {[%clk 0:00:35]} 21... Nxf4 {[%clk 0:01:05.4]}
22. Rxf4 {[%clk 0:00:35.1]} 22... Qxf4 {[%clk 0:01:07.3]} 23. Rf1 {[%clk
0:00:33.5]} 23... Qc7 {[%clk 0:00:59]} 24. Rf2 {[%clk 0:00:26.6]} 24... Rdf8
{[%clk 0:00:57.7]} 25. Rxf8+ {[%clk 0:00:23.1]} 25... Rxf8 {[%clk 0:00:59.6]}
26. Qh6 {[%clk 0:00:13.4]} 26... Rg8 {[%clk 0:00:57.1]} 27. Qd2 {[%clk
0:00:11.7]} 27... Qg7 {[%clk 0:00:54.8]} 28. Qf2 {[%clk 0:00:10]} 28... Rf8
{[%clk 0:00:52.9]} 29. Qg3+ {[%clk 0:00:05.3]} 29... Qxg3 {[%clk 0:00:52.5]} 30.
hxg3 {[%clk 0:00:07.2]} 30... Bxe4 {[%clk 0:00:49]} 31. Bxe4 {[%clk 0:00:08]}
31... Rf2 {[%clk 0:00:50.2]} 32. Bxh7 {[%clk 0:00:07.8]} 32... Rxc2 {[%clk
0:00:51.4]} 33. g4 {[%clk 0:00:06.7]} 33... Rxb2 {[%clk 0:00:27.9]} 34. g5
{[%clk 0:00:02.1]} 34... Rc2 {[%clk 0:00:26.8]} 0-1

[Event "*** Titled Tuesday 3|2 Blitz"]
[Site "Chess.com"]
[Date "2016.02.02"]
[Round "3"]
[White "dcremisi"]
[Black "the_drake"]
[Result "1-0"]
[WhiteElo "2155"]
[BlackElo "2000"]
[TimeControl "180+2"]
[EndTime "17:34:02 PST"]
[Termination "dcremisi won by checkmate"]

1. d4 {[%clk 0:03:01.9]} 1... d5 {[%clk 0:02:59.8]} 2. c4 {[%clk 0:03:02.4]}
2... e6 {[%clk 0:02:57.9]} 3. Nc3 {[%clk 0:03:02.6]} 3... Nf6 {[%clk 0:02:58.2]}
4. cxd5 {[%clk 0:03:03.6]} 4... exd5 {[%clk 0:02:56.7]} 5. Bg5 {[%clk
0:03:04.5]} 5... Nbd7 {[%clk 0:02:57.8]} 6. e3 {[%clk 0:03:05.9]} 6... Bb4
{[%clk 0:02:57]} 7. Bd3 {[%clk 0:03:04.8]} 7... Bxc3+ {[%clk 0:02:55.1]} 8. bxc3
{[%clk 0:03:05.5]} 8... c5 {[%clk 0:02:56.5]} 9. Ne2 {[%clk 0:03:05.1]} 9... Qa5
{[%clk 0:02:56.1]} 10. O-O {[%clk 0:03:04.9]} 10... O-O {[%clk 0:02:52.8]} 11.
Ng3 {[%clk 0:02:56.9]} 11... c4 {[%clk 0:02:50.4]} 12. Bf5 {[%clk 0:02:54.7]}
12... Qxc3 {[%clk 0:02:50.7]} 13. Rb1 {[%clk 0:02:45.2]} 13... Qa5 {[%clk
0:02:48.6]} 14. Bxf6 {[%clk 0:02:43.6]} 14... Nxf6 {[%clk 0:02:45.3]} 15. Bxc8
{[%clk 0:02:44.4]} 15... Rfxc8 {[%clk 0:02:36.2]} 16. Rb6 {[%clk 0:02:45]} 16...
Qxb6 {[%clk 0:02:29.2]} 17. Nf5 {[%clk 0:02:43]} 17... Qe6 {[%clk 0:02:26.5]}
18. g4 {[%clk 0:02:43.3]} 18... Rc6 {[%clk 0:02:23.9]} 19. Qf3 {[%clk
0:02:41.7]} 19... Rb6 {[%clk 0:02:15.9]} 20. Kh1 {[%clk 0:02:36.1]} 20... Rb2
{[%clk 0:02:14.8]} 21. g5 {[%clk 0:02:28.5]} 21... Ne4 {[%clk 0:02:12.7]} 22.
Qf4 {[%clk 0:02:29.2]} 22... Re8 {[%clk 0:02:06.1]} 23. Kg1 {[%clk 0:02:21.9]}
23... Qg6 {[%clk 0:02:04.9]} 24. Ne7+ {[%clk 0:02:20.3]} 24... Kf8 {[%clk
0:01:52.2]} 25. Nxg6+ {[%clk 0:02:21.1]} 25... hxg6 {[%clk 0:01:54.1]} 26. f3
{[%clk 0:01:56.9]} 26... Nd2 {[%clk 0:01:48.4]} 27. Rd1 {[%clk 0:01:57.8]} 27...
c3 {[%clk 0:01:46.7]} 28. Qd6+ {[%clk 0:01:47.3]} 28... Kg8 {[%clk 0:01:43]} 29.
Qd7 {[%clk 0:01:28.5]} 29... Rxe3 {[%clk 0:01:39.3]} 30. Qc8+ {[%clk 0:01:26.8]}
30... Kh7 {[%clk 0:01:38.6]} 31. Qh3+ {[%clk 0:01:27.3]} 31... Kg8 {[%clk
0:01:38.8]} 32. Qc8+ {[%clk 0:01:24.4]} 32... Kh7 {[%clk 0:01:35.5]} 33. Qh3+
{[%clk 0:01:12.3]} 33... Kg8 {[%clk 0:01:35]} 34. Qc8+ {[%clk 0:01:13.1]} 34...
Re8 {[%clk 0:01:34.5]} 35. Qxe8+ {[%clk 0:01:13.3]} 35... Kh7 {[%clk 0:01:34.7]}
36. Qe3 {[%clk 0:00:37.8]} 36... Rc2 {[%clk 0:01:16.6]} 37. Qd3 {[%clk
0:00:36.7]} 37... Rxa2 {[%clk 0:00:58.8]} 38. Qxc3 {[%clk 0:00:35.6]} 38... Nc4
{[%clk 0:00:58.8]} 39. Re1 {[%clk 0:00:35.5]} 39... b5 {[%clk 0:00:56.3]} 40.
Re8 {[%clk 0:00:35.5]} 40... f6 {[%clk 0:00:50.1]} 41. f4 {[%clk 0:00:34.5]}
41... Ra3 {[%clk 0:00:43.4]} 42. Qe1 {[%clk 0:00:30.5]} 42... Rh3 {[%clk
0:00:40.3]} 43. Qe6 {[%clk 0:00:28.6]} 43... fxg5 {[%clk 0:00:34]} 44. Qxh3#
{[%clk 0:00:27.2]} 1-0